Workbook

Sheet Лист1
A1: Школа | C1: МБОУ "Шарапская СОШ" | F1: Утвердил: | G1: должность | H1: Директор
A2: Типовое примерное меню приготавливаемых блюд | G2: фамилия | H2: Е.А. Юдина
A3: Возрастная категория | E3: 7-11 лет | G3: дата | H3: 9 | I3: 1 | J3: 2025
H4: день | I4: месяц | J4: год
A5: Неделя | B5: День недели | C5: Прием пищи | D5: Раздел меню | E5: Блюда | F5: Вес блюда, г | G5: Белки | H5: Жиры | I5: Углеводы | J5: Калорийность | K5: № рецептуры | L5: Цена
A6: 1 | B6: 1 | C6: Завтрак | D6: гор.блюдо | E6: Каша рисовая молочная с маслом | F6: 205 | G6: 6.31 | H6: 7.15 | I6: 31.59 | J6: 215.25 | K6: 215.25
D7: гор. напиток | E7: Чай с сахаром | F7: 200 | G7: 0 | H7: 0 | I7: 7.27 | J7: 28.73 | K7: 28.73
D8: хлеб | E8: Батон пшеничный | F8: 20 | G8: 1.5 | H8: 0.58 | I8: 9.96 | J8: 52.4 | K8: 52.4
D9: закуска | E9: Блинчики с карамельным соусом (2 шт) | F9: 121 | G9: 5.48 | H9: 12.56 | I9: 43.61 | J9: 318.9 | K9: 318.9
D11: итого | F11: =SUM(F6:F10) -> 546 | G11: =SUM(G6:G10) -> 13.29 | H11: =SUM(H6:H10) -> 20.29 | I11: =SUM(I6:I10) -> 92.43 | J11: =SUM(J6:J10) -> 615.28 | L11: =SUM(L6:L10) -> 0
A12: =A6 -> 1 | B12: =B6 -> 1 | C12: Итого за день: | F12: =F11 -> 546 | G12: =G11 -> 13.29 | H12: 20.29 | I12: 92.43 | J12: 615.28 | L12: =L11 -> 0
A13: 1 | B13: 2 | C13: Завтрак | D13: гор.блюдо | E13: Курица запеченная | F13: 90 | G13: 23.81 | H13: 19.83 | I13: 0.72 | J13: 274.56 | K13: 81
D14: хлеб | E14: Хлеб пшеничный | F14: 20 | G14: 1.4 | H14: 0.14 | I14: 8.80 | J14: 48 | K14: 119
D15: хлеб | E15: Хлеб ржаной | F15: 20 | G15: 1.32 | H15: 0.24 | I15: 8.04 | J15: 39.60 | K15: 120
D16: гарнир | E16: Каша гречневая вязкая с маслом | F16: 150 | G16: 4.35 | H16: 3.9 | I16: 20.4 | J16: 134.25 | K16: 227
D17: закуска | E17: Сыр сливочный в индивидуальной упаковке | F17: 17 | G17: 2.48 | H17: 3.96 | I17: 0.68 | J17: 48.11 | K17: этик.
D18: напиток | E18: Напиток плодово-ягодный витаминизированный | F18: 200 | G18: 0 | H18: 0 | I18: 14.16 | J18: 55.48 | K18: 104
D20: итого | F20: =SUM(F13:F19) -> 497 | G20: =SUM(G13:G19) -> 33.36 | H20: =SUM(H13:H19) -> 28.07 | I20: =SUM(I13:I19) -> 52.8 | J20: =SUM(J13:J19) -> 600 | L20: 0
A21: =A13 -> 1 | B21: =B13 -> 2 | C21: Итого за день: | F21: =F20 -> 497 | G21: =G20 -> 33.36 | H21: 28.07 | I21: 52.8 | J21: 600 | L21: =L20 -> 0
A22: 1 | B22: 3 | C22: Завтрак | D22: гор.блюдо | E22: Жаркое с мясом | F22: 240 | G22: 15.67 | H22: 24.4 | I22: 24.59 | J22: 382.65 | K22: 240
D23: хлеб | E23: Хлеб пшеничный | F23: 20 | G23: 1.52 | H23: 0.16 | I23: 9.84 | J23: 47.00 | K23: 20
D24: хлеб | E24: Хлеб ржаной | F24: 20 | G24: 1.32 | H24: 0.24 | I24: 8.04 | J24: 39.60 | K24: 20
D25: закуска | E25: Икра овощная | F25: 60 | G25: 1.2 | H25: 5.4 | I25: 5.16 | J25: 73.2 | K25: 60
D26: напиток | E26: Компот из сухофруктов | F26: 200 | G26: 0.37 | H26: 0 | I26: 14.85 | J26: 59.48 | K26: 200
D28: итого | F28: =SUM(F22:F27) -> 540 | G28: =SUM(G22:G27) -> 20.08 | H28: =SUM(H22:H27) -> 30.2 | I28: =SUM(I22:I27) -> 62.48 | J28: =SUM(J22:J27) -> 601.93 | L28: =SUM(L22:L27) -> 0
A29: =A22 -> 1 | B29: =B22 -> 3 | C29: Итого за день: | F29: =F28 -> 540 | G29: =G28 -> 20.08 | H29: 30.2 | I29: 62.48 | J29: 601.93 | L29: =L28 -> 0
A30: 1 | B30: 4 | C30: Завтрак | D30: гор.блюдо | E30: Пудинг из творога с яблоком и сгущеным молоком | F30: 150 | G30: 23.43 | H30: 11.52 | I30: 34.29 | J30: 337.45 | K30: 145
D31: гор.напиток | E31: Чай с сахаром и лимоном | F31: 200 | G31: 0.04 | H31: 0 | I31: 7.4 | J31: 30.26 | K31: 113
D32: хлеб | E32: Батон пшеничный | F32: 35 | G32: 2.63 | H32: 1.01 | I32: 17.43 | J32: 91.7 | K32: 121
D33: фрукты | E33: Фрукты в ассортименте | F33: 150 | G33: 0.6 | H33: 0.6 | I33: 14.7 | J33: 70.5 | K33: 27
D35: итого | F35: =SUM(F30:F34) -> 535 | G35: =SUM(G30:G34) -> 26.7 | H35: =SUM(H30:H34) -> 13.13 | I35: =SUM(I30:I34) -> 73.82 | J35: =SUM(J30:J34) -> 529.91 | L35: =SUM(L30:L34) -> 0
A36: =A30 -> 1 | B36: =B30 -> 4 | C36: Итого за день: | F36: =F35 -> 535 | G36: =G35 -> 26.7 | H36: 13.13 | I36: 73.82 | J36: 529.91 | L36: =L35 -> 0
A37: 1 | B37: 5 | C37: Завтрак | D37: гор.блюдо | E37: Филе птицы тушеное в томатном соусе | F37: 90 | G37: 14.84 | H37: 12.69 | I37: 4.46 | J37: 191.87 | K37: 78
D38: гор.напиток | E38: Чай с шиповником | F38: 200 | G38: 0.06 | H38: 0 | I38: 19.25 | J38: 76.95 | K38: 160
D39: хлеб | E39: Хлеб пшеничный | F39: 20 | G39: 1.52 | H39: 0.16 | I39: 9.84 | J39: 47 | K39: 119
D40: хлеб | E40: Хлеб ржаной | F40: 20 | G40: 1.32 | H40: 0.24 | I40: 8.04 | J40: 39.60 | K40: 120
D41: гарнир | E41: Спагетти отварные с маслом | F41: 150 | G41: 6.76 | H41: 3.93 | I41: 41.29 | J41: 227.48 | K41: 65
D42: фрукты | E42: фрукты в ассортименте | F42: 100 | G42: 0.8 | H42: 0.2 | I42: 7.5 | J42: 38 | K42: 24
D44: итого | F44: =SUM(F37:F43) -> 580 | G44: =SUM(G37:G43) -> 25.3 | H44: =SUM(H37:H43) -> 17.22 | I44: =SUM(I37:I43) -> 90.38 | J44: =SUM(J37:J43) -> 620.9 | L44: 0
A45: =A37 -> 1 | B45: =B37 -> 5 | C45: Итого за день: | F45: =F44 -> 580 | G45: =G44 -> 25.3 | H45: 17.22 | I45: 90.38 | J45: 620.9 | L45: =L44 -> 0
A46: 2 | B46: 1 | C46: Завтрак | D46: гор.блюдо | E46: Каша кукурузная молочная с маслом | F46: 205 | G46: 7.17 | H46: 7.38 | I46: 35.05 | J46: 234.72 | K46: 123
D47: гор.напиток | E47: Чай с сахаром | F47: 200 | G47: 0 | H47: 0 | I47: 7.27 | J47: 28.73 | K47: 114
D48: хлеб | E48: батон пшеничный | F48: 40 | G48: 3 | H48: 1.16 | I48: 19.92 | J48: 104.8 | K48: 121
D49: десерт | E49: фруктовый десерт | F49: 100 | G49: 0 | H49: 0 | I49: 15 | J49: 60 | K49: этик
D50: закуска | E50: Сыр порциями | F50: 15 | G50: 3.48 | H50: 4.43 | I50: 0 | J50: 54.60 | K50: 1
D52: итого | F52: =SUM(F46:F51) -> 560 | G52: =SUM(G46:G51) -> 13.65 | H52: =SUM(H46:H51) -> 12.97 | I52: =SUM(I46:I51) -> 77.24 | J52: =SUM(J46:J51) -> 482.85 | L52: =SUM(L46:L51) -> 0
A53: =A46 -> 2 | B53: =B46 -> 1 | C53: Итого за день: | F53: =F52 -> 560 | G53: =G52 -> 13.65 | H53: 12.97 | I53: 77.24 | J53: 482.85 | L53: =L52 -> 0
A54: 2 | B54: 2 | C54: Завтрак | D54: гор.блюдо | E54: Рыба тушеная с овощами | F54: 90 | G54: 12.63 | H54: 1.66 | I54: 4.39 | J54: 81.67 | K54: 75
D55: хлеб | E55: Хлеб пшеничный | F55: 35 | G55: 2.66 | H55: 0.28 | I55: 17.22 | J55: 82.25 | K55: 119
D56: хлеб | E56: Хлеб ржаной | F56: 25 | G56: 1.42 | H56: 0.27 | I56: 9.3 | J56: 45.32 | K56: 120
D57: гарнир | E57: Картофель запеченный с зеленью | F57: 150 | G57: 3.25 | H57: 5.11 | I57: 25.3 | J57: 159.79 | K57: 226
D58: закуска | E58: сыр сливочный в индивидуальной упаковке | F58: 17 | G58: 2.48 | H58: 3.96 | I58: 0.68 | J58: 48.11 | K58: этик
D59: напиток | E59: Компот из сухофруктов | F59: 200 | G59: 0.37 | H59: 0 | I59: 14.85 | J59: 59.48 | K59: 98
D61: итого | F61: =SUM(F54:F60) -> 517 | G61: =SUM(G54:G60) -> 22.81 | H61: 11.28 | I61: 71.74 | J61: 476.62 | L61: =SUM(L54:L60) -> 0
A62: =A54 -> 2 | B62: =B54 -> 2 | C62: Итого за день: | F62: =F61 -> 517 | G62: =G61 -> 22.81 | H62: 11.28 | I62: 71.74 | J62: 476.62 | L62: =L61 -> 0
A63: 2 | B63: 3 | C63: Завтрак | D63: гор.блюдо | E63: Рыба тушеная с овощами | F63: 90 | G63: 12.63 | H63: 1.66 | I63: 4.39 | J63: 81.67 | K63: 75
D64: хлеб | E64: Хлеб пшеничный | F64: 35 | G64: 2.66 | H64: 0.28 | I64: 17.22 | J64: 82.25 | K64: 119
D65: хлеб | E65: Хлеб ржаной | F65: 25 | G65: 1.42 | H65: 0.27 | I65: 9.3 | J65: 45.32 | K65: 120
D66: гарнир | E66: Картофель запеченный с зеленью | F66: 150 | G66: 3.25 | H66: 5.11 | I66: 25.3 | J66: 159.79 | K66: 226
D67: закуска | E67: сыр сливочный в индивидуальной упаковке | F67: 17 | G67: 2.48 | H67: 3.96 | I67: 0.68 | J67: 48.11 | K67: этик
D68: напиток | E68: Компот из сухофруктов | F68: 200 | G68: 0.37 | H68: 0 | I68: 14.85 | J68: 59.48 | K68: 98
D70: итого | F70: =SUM(F63:F69) -> 517 | G70: =SUM(G63:G69) -> 22.81 | H70: 11.28 | I70: 71.74 | J70: 476.62 | L70: =SUM(L63:L69) -> 0
A71: =A63 -> 2 | B71: =B63 -> 3 | C71: Итого за день: | F71: =F70 -> 517 | G71: =G70 -> 22.81 | H71: 11.28 | I71: 71.74 | J71: 476.62 | L71: =L70 -> 0
A72: 2 | B72: 4 | C72: Завтрак | D72: гор.блюдо | E72: Омлет натуральный | F72: 150 | G72: 15.59 | H72: 16.45 | I72: 2.79 | J72: 222.36 | K72: 66
D73: хлеб | E73: батон пшеничный | F73: 30 | G73: 2.16 | H73: 0.81 | I73: 14.73 | J73: 75.66 | K73: 121
D74: закуска | E74: Масло сливочное порциями | F74: 15 | G74: 0.12 | H74: 10.88 | I74: 0.19 | J74: 99.15 | K74: 2
D75: фрукты | E75: Фрукт в ассортименте | F75: 100 | G75: 0.8 | H75: 0.2 | I75: 7.5 | J75: 38 | K75: 24
D76: гор. напиток | E76: Какао с молоком | F76: 200 | G76: 6.64 | H76: 5.15 | I76: 16.81 | J76: 141.19 | K76: 115
D78: итого | F78: =SUM(F72:F77) -> 495 | G78: =SUM(G72:G77) -> 25.31 | H78: =SUM(H72:H77) -> 33.49 | I78: =SUM(I72:I77) -> 42.02 | J78: =SUM(J72:J77) -> 576.36 | L78: =SUM(L72:L77) -> 0
A79: =A72 -> 2 | B79: =B72 -> 4 | C79: Итого за день: | F79: =F78 -> 495 | G79: =G78 -> 25.31 | H79: 33.49 | I79: 42.02 | J79: 576.36 | L79: =L78 -> 0
A80: 2 | B80: 5 | C80: Завтрак | D80: гор.блюдо | E80: Гуляш | F80: 90 | G80: 16.56 | H80: 15.75 | I80: 2.84 | J80: 219.6 | K80: 89
D81: хлеб | E81: Хлеб пшеничный | F81: 25 | G81: 1.9 | H81: 0.2 | I81: 12.30 | J81: 58.75 | K81: 119
D82: хлеб | E82: Хлеб ржаной | F82: 20 | G82: 1.14 | H82: 0.22 | I82: 7.44 | J82: 36.26 | K82: 120
D83: гарнир | E83: Рис отварной с маслом | F83: 150 | G83: 3.34 | H83: 4.91 | I83: 33.93 | J83: 191.49 | K83: 53
D84: закуска | E84: маринад из моркови | F84: 60 | G84: 1.12 | H84: 4.27 | I84: 6.02 | J84: 68.62 | K84: 13
D85: напиток | E85: Сок фруктовый | F85: 200 | G85: 1 | H85: 0.2 | I85: 20.2 | J85: 92 | K85: 107
D87: итого | F87: =SUM(F80:F86) -> 545 | G87: =SUM(G80:G86) -> 25.06 | H87: 25.55 | I87: 82.73 | J87: 666.72 | L87: =SUM(L80:L86) -> 0
A88: =A80 -> 2 | B88: =B80 -> 5 | C88: Итого за день: | F88: =F87 -> 545 | G88: =G87 -> 25.06 | H88: 25.55 | I88: 82.73 | J88: 666.72 | L88: =L87 -> 0
A89: 3 | B89: 1 | C89: Завтрак | D89: гор.блюдо | E89: каша манная молочная с ягодным соусом | F89: 225 | G89: 5.55 | H89: 7.36 | I89: 29.68 | J89: 208.58 | K89: 347
D90: хлеб | E90: батон пшеничный | F90: 45 | G90: 3.38 | H90: 1.3 | I90: 22.41 | J90: 117.9 | K90: 121
D91: закуска | E91: сыр порциями | F91: 15 | G91: 3.48 | H91: 4.43 | I91: 0 | J91: 54.60 | K91: 1
D92: фрукты | E92: фрукты в ассортименте | F92: 150 | G92: 0.6 | H92: 0.6 | I92: 14.7 | J92: 70.5 | K92: 24
D93: гор. напиток | E93: Чай с сахаром | F93: 200 | G93: 0 | H93: 0 | I93: 7.27 | J93: 28.73 | K93: 114
D95: итого | F95: =SUM(F89:F94) -> 635 | G95: =SUM(G89:G94) -> 13.01 | H95: =SUM(H89:H94) -> 13.69 | I95: =SUM(I89:I94) -> 74.06 | J95: =SUM(J89:J94) -> 480.31 | L95: =SUM(L89:L94) -> 0
A96: =A89 -> 3 | B96: =B89 -> 1 | C96: Итого за день: | F96: =F95 -> 635 | G96: =G95 -> 13.01 | H96: =H95 -> 13.69 | I96: =I95 -> 74.06 | J96: =J95 -> 480.31 | L96: =L95 -> 0
A97: 3 | B97: 2 | C97: Завтрак | D97: гор.блюдо | E97: Мясо тушеное | F97: 90 | G97: 16.41 | H97: 15.33 | I97: 1.91 | J97: 211.4 | K97: 88
D98: хлеб | E98: Хлеб пшеничный | F98: 20 | G98: 1.4 | H98: 0.14 | I98: 8.80 | J98: 48 | K98: 119
D99: хлеб | E99: Хлеб ржаной | F99: 20 | G99: 1.14 | H99: 0.22 | I99: 7.44 | J99: 36.26 | K99: 120
D100: гарнир | E100: Картофель запеченный | F100: 150 | G100: 3.31 | H100: 5.56 | I100: 25.99 | J100: 167.07 | K100: 52
D101: закуска | E101: икра овощная | F101: 60 | G101: 1.02 | H101: 7.98 | I101: 3.05 | J101: 88.8 | K101: 135
D102: напиток | E102: Напиток плодово-ягодный витаминизированный | F102: 200 | G102: 0 | H102: 0 | I102: 14.4 | J102: 58.4 | K102: 104
D104: итого | F104: =SUM(F97:F103) -> 540 | G104: =SUM(G97:G103) -> 23.28 | H104: 29.23 | I104: 61.59 | J104: 609.93 | L104: =SUM(L97:L103) -> 0
A105: =A97 -> 3 | B105: =B97 -> 2 | C105: Итого за день: | F105: =F104 -> 540 | G105: =G104 -> 23.28 | H105: 29.23 | I105: 61.59 | J105: 609.93 | L105: =L104 -> 0
A106: 3 | B106: 3 | C106: Завтрак | D106: гор.блюдо | E106: Запеканка творожная Зебра со сгущеным молоком | F106: 150 | G106: 20.68 | H106: 9.08 | I106: 30.54 | J106: 287.69 | K106: 198
D107: хлеб | E107: батон пшеничный | F107: 20 | G107: 1.5 | H107: 0.58 | I107: 9.96 | J107: 52.4 | K107: 121
D108: фрукты | E108: Фрукт в ассортименте | F108: 150 | G108: 0.6 | H108: 0.45 | I108: 15.45 | J108: 70.5 | K108: 24
D109: гор. напиток | E109: Горячий шоколад | F109: 200 | G109: 3.28 | H109: 2.56 | I109: 11.81 | J109: 83.43 | K109: 116
D111: итого | F111: =SUM(F106:F110) -> 520 | G111: =SUM(G106:G110) -> 26.06 | H111: =SUM(H106:H110) -> 12.67 | I111: =SUM(I106:I110) -> 67.76 | J111: =SUM(J106:J110) -> 494.02 | L111: =SUM(L106:L110) -> 0
A112: =A106 -> 3 | B112: =B106 -> 3 | C112: Итого за день: | F112: =F111 -> 520 | G112: =G111 -> 26.06 | H112: 12.67 | I112: 67.76 | J112: 494.02 | L112: =L111 -> 0
A113: 3 | B113: 4 | C113: Завтрак | D113: гор.блюдо | E113: Филе птицы тушеное в кисло-сладком соусе | F113: 90 | G113: 13.94 | H113: 16.18 | I113: 5.21 | J113: 224.21 | K113: 269
D114: хлеб | E114: Хлеб пшеничный | F114: 20 | G114: 1.52 | H114: 0.16 | I114: 9.84 | J114: 47 | K114: 119
D115: хлеб | E115: Хлеб ржаной | F115: 20 | G115: 1.32 | H115: 0.24 | I115: 8.04 | J115: 39.60 | K115: 120
D116: гарнир | E116: Макароны отварные с маслом | F116: 150 | G116: 6.76 | H116: 3.93 | I116: 41.29 | J116: 227.48 | K116: 64
D117: закуска | E117: сыр твердый | F117: 15 | G117: 3.48 | H117: 4.43 | I117: 0 | J117: 54.6 | K117: 1
D118: напиток | E118: Компот из сухофруктов | F118: 200 | G118: 0.37 | H118: 0 | I118: 14.85 | J118: 59.48 | K118: 98
D120: итого | F120: =SUM(F113:F119) -> 495 | G120: =SUM(G113:G119) -> 27.39 | H120: 24.94 | I120: 79.23 | J120: =SUM(J113:J119) -> 652.37 | L120: =SUM(L113:L119) -> 0
A121: =A113 -> 3 | B121: =B113 -> 4 | C121: Итого за день: | F121: =F120 -> 495 | G121: =G120 -> 27.39 | H121: 24.94 | I121: 79.23 | J121: 652.37 | L121: =L120 -> 0
A122: 3 | B122: 5 | C122: Завтрак | D122: гор.блюдо | E122: омлет с сыром | F122: 150 | G122: 18.86 | H122: 20.22 | I122: 2.79 | J122: 270.32 | K122: 67
D123: бутерброд | E123: горячий бутерброд на батоне | F123: 60 | G123: 5.54 | H123: 4.69 | I123: 14.55 | J123: 123.12 | K123: 197
D124: фрукты | E124: Фрукты в ассортименте | F124: 100 | G124: 0.8 | H124: 0.2 | I124: 7.5 | J124: 38 | K124: 24
D125: гор. напиток | E125: Чай с облепихой | F125: 200 | G125: 0 | H125: 0 | I125: 177.88 | J125: 69.66 | K125: 159
D127: итого | F127: =SUM(F122:F126) -> 510 | G127: =SUM(G122:G126) -> 25.2 | H127: =SUM(H122:H126) -> 25.11 | I127: =SUM(I122:I126) -> 202.72 | J127: =SUM(J122:J126) -> 501.1 | L127: =SUM(L122:L126) -> 0
A128: =A122 -> 3 | B128: =B122 -> 5 | C128: Итого за день: | F128: =F127 -> 510 | G128: =G127 -> 25.2 | H128: 25.11 | I128: 202.72 | J128: 501.1 | L128: =L127 -> 0
A129: 4 | B129: 1 | C129: Завтрак | D129: гор.блюдо | E129: каша овсянная молочная с маслом | F129: 205 | G129: 8.2 | H129: 8.73 | I129: 29.68 | J129: 230.33 | K129: 59
D130: хлеб | E130: батон пшеничный | F130: 20 | G130: 1.5 | H130: 0.58 | I130: 9.96 | J130: 52.4 | K130: 121
D131: Закуска | E131: Оладьи с джемом | F131: 90 | G131: 4.01 | H131: 14.35 | I131: 26.72 | J131: 252.91 | K131: 301
D132: десерт | E132: Молочный десерт | F132: 200 | G132: 8.25 | H132: 6.25 | I132: 22 | J132: 175 | K132: этик
D133: гор. напиток | E133: Чай с сахаром | F133: 200 | G133: 0 | H133: 0 | I133: 7.27 | J133: 28.73 | K133: 114
D135: итого | F135: =SUM(F129:F134) -> 715 | G135: =SUM(G129:G134) -> 21.96 | H135: =SUM(H129:H134) -> 29.91 | I135: =SUM(I129:I134) -> 95.63 | J135: =SUM(J129:J134) -> 739.37 | L135: =SUM(L129:L134) -> 0
A136: =A129 -> 4 | B136: =B129 -> 1 | C136: Итого за день: | F136: =F135 -> 715 | G136: =G135 -> 21.96 | H136: 29.91 | I136: 95.63 | J136: 739.37 | L136: =L135 -> 0
A137: 4 | B137: 2 | C137: Завтрак | D137: гор.блюдо | E137: Котлета мясная | F137: 90 | G137: 15.51 | H137: 15.07 | I137: 8.44 | J137: 232.47 | K137: 90
D138: хлеб | E138: Хлеб пшеничный | F138: 20 | G138: 1.52 | H138: 0.16 | I138: 9.84 | J138: 47 | K138: 119
D139: хлеб | E139: Хлеб ржаной | F139: 20 | G139: 1.32 | H139: 0.24 | I139: 8.04 | J139: 39.60 | K139: 120
D140: гарнир | E140: Рис отварной с маслом | F140: 150 | G140: 3.34 | H140: 4.91 | I140: 33.93 | J140: 191.49 | K140: 53
D141: фрукты | E141: Фрукты в ассортименте | F141: 150 | G141: 0.6 | H141: 0.6 | I141: 14.7 | J141: 70.5 | K141: 24
D142: напиток | E142: Кисель витаминизированный плодово-ягодный | F142: 200 | G142: 0 | H142: 0 | I142: 19.94 | J142: 80.3 | K142: 95
D144: итого | F144: =SUM(F137:F143) -> 630 | G144: =SUM(G137:G143) -> 22.29 | H144: 20.98 | I144: 94.89 | J144: 661.36 | L144: =SUM(L137:L143) -> 0
A145: =A137 -> 4 | B145: =B137 -> 2 | C145: Итого за день: | F145: =F144 -> 630 | G145: =G144 -> 22.29 | H145: 20.98 | I145: 94.89 | J145: 661.36 | L145: =L144 -> 0
A146: 4 | B146: 3 | C146: Завтрак | D146: гор.блюдо | E146: Запеканка из творога с ягодным соусом | F146: 150 | G146: 22.95 | H146: 10.05 | I146: 32.59 | J146: 314.86 | K146: 230
D147: хлеб | E147: батон пшеничный | F147: 35 | G147: 2.63 | H147: 1.01 | I147: 17.43 | J147: 91.7 | K147: 121
D148: фрукты | E148: Фрукт в ассортименте | F148: 100 | G148: 0.8 | H148: 0.2 | I148: 7.5 | J148: 38 | K148: 24
D149: закуска | E149: сыр в индивидуальной упаковке | F149: 17 | G149: 2.48 | H149: 3.96 | I149: 0.68 | J149: 48.11 | K149: этик
D150: гор. напиток | E150: Чай с сахаром и лимоном | F150: 200 | G150: 0.304 | H150: 0 | I150: 7.4 | J150: 30.26 | K150: 113
D152: итого | F152: =SUM(F146:F151) -> 502 | G152: =SUM(G146:G151) -> 29.164 | H152: =SUM(H146:H151) -> 15.22 | I152: =SUM(I146:I151) -> 65.6 | J152: =SUM(J146:J151) -> 522.93 | L152: =SUM(L146:L151) -> 0
A153: =A146 -> 4 | B153: =B146 -> 3 | C153: Итого за день: | F153: =F152 -> 502 | G153: =G152 -> 29.164 | H153: 15.22 | I153: 65.6 | J153: 522.93 | L153: =L152 -> 0
A154: 4 | B154: 4 | C154: Завтрак | D154: гор.блюдо | E154: Рыба запеченная с сыром | F154: 90 | G154: 18.5 | H154: 3.73 | I154: 2.51 | J154: 116.1 | K154: 146
D155: хлеб | E155: Хлеб пшеничный | F155: 35 | G155: 2.66 | H155: 0.28 | I155: 17.22 | J155: 82.25 | K155: 119
D156: хлеб | E156: Хлеб ржаной | F156: 30 | G156: 1.98 | H156: 0.36 | I156: 12.06 | J156: 59.40 | K156: 120
D157: гарнир | E157: Картофель запеченный | F157: 150 | G157: 3.31 | H157: 5.56 | I157: 25.99 | J157: 167.07 | K157: 52
D158: закуска | E158: сыр твердый | F158: 15 | G158: 3.48 | H158: 4.43 | I158: 0 | J158: 54.6 | K158: 1
D159: напиток | E159: Компот из кураги | F159: 200 | G159: 0.83 | H159: 0.04 | I159: 15.16 | J159: 64.22 | K159: 102
D161: итого | F161: =SUM(F154:F160) -> 520 | G161: =SUM(G154:G160) -> 30.76 | H161: 14.4 | I161: 72.94 | J161: 543.64 | L161: =SUM(L154:L160) -> 0
A162: =A154 -> 4 | B162: =B154 -> 4 | C162: Итого за день: | F162: =F161 -> 520 | G162: =G161 -> 30.76 | H162: 14.4 | I162: 72.94 | J162: 543.64 | L162: =L161 -> 0
A163: 4 | B163: 5 | C163: Завтрак | D163: гор.блюдо | E163: Омлет натуральный | F163: 150 | G163: 15.59 | H163: 16.45 | I163: 2.79 | J163: 222.36 | K163: 66
D164: хлеб | E164: батон пшеничный | F164: 35 | G164: 2.63 | H164: 1.01 | I164: 17.43 | J164: 91.7 | K164: 121
D165: фрукты | E165: Фрукт в ассортименте | F165: 150 | G165: 0.6 | H165: 0.6 | I165: 14.7 | J165: 70.5 | K165: 24
D166: гор. напиток | E166: Сок фруктовый | F166: 200 | G166: 1 | H166: 0.2 | I166: 20.2 | J166: 92 | K166: 107
D168: итого | F168: =SUM(F163:F167) -> 535 | G168: =SUM(G163:G167) -> 19.82 | H168: =SUM(H163:H167) -> 18.26 | I168: =SUM(I163:I167) -> 55.12 | J168: =SUM(J163:J167) -> 476.56 | L168: =SUM(L163:L167) -> 0
A169: =A163 -> 4 | B169: =B163 -> 5 | C169: Итого за день: | F169: =F168 -> 535 | G169: =G168 -> 19.82 | H169: 18.26 | I169: 55.12 | J169: 476.56 | L169: =L168 -> 0
C170: Среднее значение за период: | F170: =(F12+F21+F29+F36+F45+F53+F62+F71+F79+F88+F96+F105+F112+F121+F128+F136+F145+F153+F162+F169)/(IF(F12=0,0,1)+IF(F21=0,0,1)+IF(F29=0,0,1)+IF(F36=0,0,1)+IF(F45=0,0,1)+IF(F53=0,0,1)+IF(F62=0,0,1)+IF(F71=0,0,1)+IF(F79=0,0,1)+IF(F88=0,0,1)+IF(F96=0,0,1)+IF(F105=0,0,1)+IF(F112=0,0,1)+IF(F121=0,0,1)+IF(F128=0,0,1)+IF(F136=0,0,1)+IF(F145=0,0,1)+IF(F153=0,0,1)+IF(F162=0,0,1)+IF(F169=0,0,1)) -> 546.7 | G170: =(G12+G21+G29+G36+G45+G53+G62+G71+G79+G88+G96+G105+G112+G121+G128+G136+G145+G153+G162+G169)/(IF(G12=0,0,1)+IF(G21=0,0,1)+IF(G29=0,0,1)+IF(G36=0,0,1)+IF(G45=0,0,1)+IF(G53=0,0,1)+IF(G62=0,0,1)+IF(G71=0,0,1)+IF(G79=0,0,1)+IF(G88=0,0,1)+IF(G96=0,0,1)+IF(G105=0,0,1)+IF(G112=0,0,1)+IF(G121=0,0,1)+IF(G128=0,0,1)+IF(G136=0,0,1)+IF(G145=0,0,1)+IF(G153=0,0,1)+IF(G162=0,0,1)+IF(G169=0,0,1)) -> 23.37 | H170: =(H12+H21+H29+H36+H45+H53+H62+H71+H79+H88+H96+H105+H112+H121+H128+H136+H145+H153+H162+H169)/(IF(H12=0,0,1)+IF(H21=0,0,1)+IF(H29=0,0,1)+IF(H36=0,0,1)+IF(H45=0,0,1)+IF(H53=0,0,1)+IF(H62=0,0,1)+IF(H71=0,0,1)+IF(H79=0,0,1)+IF(H88=0,0,1)+IF(H96=0,0,1)+IF(H105=0,0,1)+IF(H112=0,0,1)+IF(H121=0,0,1)+IF(H128=0,0,1)+IF(H136=0,0,1)+IF(H145=0,0,1)+IF(H153=0,0,1)+IF(H162=0,0,1)+IF(H169=0,0,1)) -> 20.39 | I170: =(I12+I21+I29+I36+I45+I53+I62+I71+I79+I88+I96+I105+I112+I121+I128+I136+I145+I153+I162+I169)/(IF(I12=0,0,1)+IF(I21=0,0,1)+IF(I29=0,0,1)+IF(I36=0,0,1)+IF(I45=0,0,1)+IF(I53=0,0,1)+IF(I62=0,0,1)+IF(I71=0,0,1)+IF(I79=0,0,1)+IF(I88=0,0,1)+IF(I96=0,0,1)+IF(I105=0,0,1)+IF(I112=0,0,1)+IF(I121=0,0,1)+IF(I128=0,0,1)+IF(I136=0,0,1)+IF(I145=0,0,1)+IF(I153=0,0,1)+IF(I162=0,0,1)+IF(I169=0,0,1)) -> 79.35 | J170: =(J12+J21+J29+J36+J45+J53+J62+J71+J79+J88+J96+J105+J112+J121+J128+J136+J145+J153+J162+J169)/(IF(J12=0,0,1)+IF(J21=0,0,1)+IF(J29=0,0,1)+IF(J36=0,0,1)+IF(J45=0,0,1)+IF(J53=0,0,1)+IF(J62=0,0,1)+IF(J71=0,0,1)+IF(J79=0,0,1)+IF(J88=0,0,1)+IF(J96=0,0,1)+IF(J105=0,0,1)+IF(J112=0,0,1)+IF(J121=0,0,1)+IF(J128=0,0,1)+IF(J136=0,0,1)+IF(J145=0,0,1)+IF(J153=0,0,1)+IF(J162=0,0,1)+IF(J169=0,0,1)) -> 566.44 | L170: =(L12+L21+L29+L36+L45+L53+L62+L71+L79+L88+L96+L105+L112+L121+L128+L136+L145+L153+L162+L169)/(IF(L12=0,0,1)+IF(L21=0,0,1)+IF(L29=0,0,1)+IF(L36=0,0,1)+IF(L45=0,0,1)+IF(L53=0,0,1)+IF(L62=0,0,1)+IF(L71=0,0,1)+IF(L79=0,0,1)+IF(L88=0,0,1)+IF(L96=0,0,1)+IF(L105=0,0,1)+IF(L112=0,0,1)+IF(L121=0,0,1)+IF(L128=0,0,1)+IF(L136=0,0,1)+IF(L145=0,0,1)+IF(L153=0,0,1)+IF(L162=0,0,1)+IF(L169=0,0,1)) -> 
